fUSD/lending_fUSD_20240919
["ID","MTS","AMOUNT","RATE_DAILY","PERIOD"]
[338553692,1726732233895,-1504.63,0.00012788,2]
[338553693,1726732233906,-1973.3,0.00012788,2]
[338553694,1726732233916,-7549.5939,0.00012789,2]
[338553695,1726732233925,-225687.26094473,0.00012789,2]
[338553696,1726732233976,-2555.81237326,0.00012789,2]
[338553705,1726732237977,-500.0,0.00012788,2]
[338553706,1726732237986,-500.0,0.00012788,2]
[338553707,1726732237996,-301.775,0.00012789,2]
[338553708,1726732238007,-284.16954793,0.00012789,2]
[338553709,1726732238022,-250.0,0.00012789,2]
[338553710,1726732238033,-887.5,0.00012789,2]
[338553711,1726732238044,-1733.45721338,0.00012789,2]
[338553712,1726732238140,-13300.0249207,0.00012789,2]
[338553713,1726732238150,-500.0,0.00012789,2]
[338553714,1726732238159,-1000.0,0.00012789,2]
[338553715,1726732238170,-765.403,0.00012789,2]
[338553716,1726732238180,-1200.6621,0.00012789,2]
[338553717,1726732238192,-938.391,0.00012789,2]
[338553718,1726732238201,-181.884,0.00012789,2]
[338553719,1726732238210,-4995.0844,0.00012789,2]
[338553720,1726732238220,-900.0,0.000128,4]
[338553721,1726732238230,-499.99,0.00012879,2]
[338553722,1726732238240,-151.75,0.00012879,2]
[338553723,1726732238250,-500.0,0.00012889,2]
[338553724,1726732238262,-500.0,0.00012889,2]
[338553725,1726732238273,-500.0,0.00012889,2]
[338553726,1726732238282,-500.0,0.00012889,2]
[338553727,1726732238291,-500.0,0.00012889,2]
[338553729,1726732238301,-500.0,0.00012889,2]
[338553731,1726732238311,-500.0,0.00012889,2]
[338553733,1726732238322,-500.0,0.00012889,2]
[338553735,1726732238331,-500.0,0.00012889,2]
[338553737,1726732238342,-511.73,0.00012889,2]
[338553739,1726732238351,-556.86,0.00012889,2]
[338553741,1726732238360,-500.0,0.00012889,2]
[338553743,1726732238372,-500.0,0.00012889,2]
[338553745,1726732238382,-500.0,0.00012889,2]
[338553747,1726732238391,-500.0,0.00012889,2]
[338553749,1726732238401,-733.16,0.00012889,2]
[338553751,1726732238410,-500.0,0.00012889,2]
[338553753,1726732238420,-500.0,0.00012889,2]
[338553755,1726732238430,-500.0,0.00012889,2]
[338553757,1726732238439,-321.10723099,0.00012889,2]
[338553759,1726732238449,-500.0,0.00012889,2]
[338553761,1726732238458,-513.56,0.00012889,2]
[338553763,1726732238468,-500.0,0.00012889,2]
[338553765,1726732238477,-500.0,0.00012889,2]
[338553767,1726732238488,-500.0,0.00012889,2]
[338553769,1726732238497,-500.0,0.00012889,2]
[338553771,1726732238506,-500.0,0.00012889,2]
[338553773,1726732238516,-500.0,0.00012889,2]
[338553775,1726732238526,-500.0,0.00012889,2]
[338553777,1726732238535,-500.0,0.00012889,2]
[338553779,1726732238544,-500.0,0.00012889,2]
[338553781,1726732238554,-500.0,0.00012889,2]
[338553783,1726732238563,-500.0,0.00012889,2]
[338553785,1726732238572,-500.0,0.00012889,2]
[338553787,1726732238581,-500.0,0.00012889,2]
[338553789,1726732238590,-500.0,0.00012889,2]
[338553791,1726732238600,-500.0,0.00012889,2]
[338553793,1726732238609,-591.17,0.00012889,2]
[338553795,1726732238619,-500.0,0.00012889,2]
[338553797,1726732238628,-500.0,0.00012889,2]
[338553799,1726732238638,-500.0,0.00012889,2]
[338553801,1726732238647,-500.0,0.00012889,2]
[338553803,1726732238656,-500.0,0.00012889,2]
[338553805,1726732238666,-500.0,0.00012889,2]
[338553807,1726732238675,-500.0,0.00012889,2]
[338553809,1726732238684,-696.61,0.00012889,2]
[338553811,1726732238694,-500.0,0.00012889,2]
[338553813,1726732238703,-500.0,0.00012889,2]
[338553815,1726732238712,-539.18,0.00012889,2]
[338553817,1726732238722,-500.0,0.00012889,2]
[338553819,1726732238731,-593.75377617,0.00012889,2]
[338553820,1726732238740,-500.0,0.00012889,2]
[338553822,1726732238749,-500.0,0.00012889,2]
[338553824,1726732238759,-717.13,0.00012889,2]
[338553826,1726732238768,-701.24,0.00012889,2]
[338553828,1726732238778,-500.0,0.00012889,2]
[338553830,1726732238788,-500.0,0.00012889,2]
[338553832,1726732238797,-544.0,0.00012889,2]
[338553834,1726732238806,-941.85,0.00012889,2]
[338553836,1726732238815,-500.0,0.00012889,2]
[338553838,1726732238826,-500.0,0.00012889,2]
[338553840,1726732238836,-500.0,0.00012889,2]
[338553842,1726732238845,-500.0,0.00012889,2]
[338553844,1726732238854,-500.0,0.00012889,2]
[338553846,1726732238864,-500.0,0.00012889,2]
[338553848,1726732238874,-500.0,0.00012889,2]
[338553850,1726732238883,-500.0,0.00012889,2]
[338553852,1726732238893,-500.0,0.00012889,2]
[338553854,1726732238903,-500.0,0.00012889,2]
[338553857,1726732238916,-504.44,0.00012889,2]
[338553859,1726732238926,-500.0,0.00012889,2]
[338553861,1726732238936,-175.06692312,0.00012889,2]
[338553863,1726732238946,-500.0,0.00012889,2]
[338553865,1726732238956,-500.0,0.00012889,2]
[338553867,1726732238967,-561.64,0.00012889,2]
[338553869,1726732238978,-500.0,0.00012889,2]
[338553871,1726732238989,-601.68403665,0.00012889,2]
[338553873,1726732238998,-969.61,0.00012889,2]
[338553875,1726732239007,-858.02,0.00012889,2]
[338553877,1726732239018,-500.0,0.00012889,2]
[338553879,1726732239029,-896.77,0.00012889,2]
[338553881,1726732239038,-500.0,0.00012889,2]
[338553883,1726732239047,-674.18,0.00012889,2]
[338553885,1726732239057,-500.0,0.00012889,2]
[338553887,1726732239066,-500.0,0.00012889,2]
[338553889,1726732239076,-643.3,0.00012889,2]
[338553892,1726732239086,-500.0,0.00012889,2]
[338553894,1726732239095,-993.4,0.00012889,2]
[338553896,1726732239106,-500.0,0.00012889,2]
[338553898,1726732239115,-500.0,0.00012889,2]
[338553900,1726732239125,-1258.28,0.00012889,2]
[338553902,1726732239135,-246.91894113,0.00012889,2]
[338553904,1726732239146,-677.15,0.00012889,2]
[338553906,1726732239157,-1044.68,0.00012889,2]
[338553908,1726732239166,-705.18,0.00012889,2]
[338553910,1726732239175,-500.0,0.00012889,2]
[338553912,1726732239185,-500.0,0.00012889,2]
[338553914,1726732239195,-812.59,0.00012889,2]
[338553916,1726732239205,-500.0,0.00012889,2]
[338553918,1726732239215,-593.93,0.00012889,2]
[338553919,1726732239225,-500.0,0.00012889,2]
[338553921,1726732239234,-500.0,0.00012889,2]
[338553923,1726732239245,-582.2,0.00012889,2]
[338553925,1726732239256,-819.35,0.00012889,2]
[338553927,1726732239267,-500.0,0.00012889,2]
[338553929,1726732239279,-500.0,0.00012889,2]
[338553931,1726732239288,-500.0,0.00012889,2]
[338553933,1726732239297,-565.94,0.00012889,2]
[338553935,1726732239307,-500.0,0.00012889,2]
[338553937,1726732239317,-500.0,0.00012889,2]
[338553939,1726732239326,-1613.08,0.00012889,2]
[338553940,1726732239335,-536.25,0.00012889,2]
[338553942,1726732239344,-725.28,0.00012889,2]
[338553944,1726732239355,-500.0,0.00012889,2]
[338553946,1726732239366,-500.0,0.00012889,2]
[338553948,1726732239378,-500.0,0.00012889,2]
[338553950,1726732239387,-500.0,0.00012889,2]
[338553952,1726732239396,-500.0,0.00012889,2]
[338553954,1726732239406,-855.03,0.00012889,2]
[338553956,1726732239415,-500.0,0.00012889,2]
[338553958,1726732239425,-500.0,0.00012889,2]
[338553960,1726732239434,-500.0,0.00012889,2]
[338553962,1726732239443,-500.0,0.00012889,2]
[338553964,1726732239453,-1132.22,0.00012889,2]
[338553966,1726732239462,-500.0,0.00012889,2]
[338553968,1726732239471,-500.0,0.00012889,2]
[338553970,1726732239480,-500.0,0.00012889,2]
[338553972,1726732239490,-816.95,0.00012889,2]
[338553974,1726732239500,-500.0,0.00012889,2]
[338553976,1726732239509,-500.0,0.00012889,2]
[338553978,1726732239518,-500.0,0.00012889,2]
[338553979,1726732239540,-500.0,0.00012889,2]
[338553980,1726732239549,-500.0,0.00012889,2]
[338553981,1726732239558,-807.02,0.00012889,2]
[338553982,1726732239567,-500.0,0.00012889,2]
[338553983,1726732239577,-500.0,0.00012889,2]
[338553984,1726732239586,-500.0,0.00012889,2]
[338553985,1726732239596,-500.0,0.00012889,2]
[338553986,1726732239605,-728.77,0.00012889,2]
[338553987,1726732239615,-539.85,0.00012889,2]
[338553988,1726732239626,-500.0,0.00012889,2]
[338553989,1726732239636,-500.0,0.00012889,2]
[338553990,1726732239645,-500.0,0.00012889,2]
[338553991,1726732239654,-572.27,0.00012889,2]
[338553992,1726732239664,-783.65,0.00012889,2]
[338553993,1726732239673,-500.0,0.00012889,2]
[338553994,1726732239682,-500.0,0.00012889,2]
[338553995,1726732239692,-500.0,0.00012889,2]
[338553996,1726732239702,-962.12,0.00012889,2]
[338553997,1726732239713,-500.0,0.00012889,2]
[338553998,1726732239723,-500.0,0.00012889,2]
[338553999,1726732239733,-500.0,0.00012889,2]
[338554000,1726732239743,-545.57,0.00012889,2]
[338554001,1726732239753,-500.0,0.00012889,2]
[338554002,1726732239763,-500.0,0.00012889,2]
[338554003,1726732239772,-910.48,0.00012889,2]
[338554004,1726732239781,-979.92,0.00012889,2]
[338554005,1726732239792,-1433.4,0.00012889,2]
[338554006,1726732239801,-500.0,0.00012889,2]
[338554007,1726732239811,-500.0,0.00012889,2]
[338554008,1726732239821,-638.34,0.00012889,2]
[338554009,1726732239834,-665.78,0.00012889,2]
[338554011,1726732239843,-323.83,0.00012889,2]
[338554013,1726732239853,-500.0,0.00012889,2]
[338554014,1726732239862,-500.0,0.00012889,2]
[338554016,1726732239874,-500.0,0.00012889,2]
[338554018,1726732239884,-500.0,0.00012889,2]
[338554020,1726732239893,-503.9,0.00012889,2]
[338554022,1726732239904,-500.0,0.00012889,2]
[338554024,1726732239914,-522.83,0.00012889,2]
[338554026,1726732239923,-500.0,0.00012889,2]
[338554028,1726732239934,-500.0,0.00012889,2]
[338554030,1726732239943,-500.0,0.00012889,2]
[338554032,1726732239952,-500.0,0.00012889,2]
[338554034,1726732239962,-500.0,0.00012889,2]
[338554036,1726732239971,-500.0,0.00012889,2]
[338554038,1726732239980,-500.0,0.00012889,2]
[338554039,1726732239991,-549.04,0.00012889,2]
[338554041,1726732240001,-500.0,0.00012889,2]
[338554042,1726732240010,-1979.64,0.00012889,2]
[338554043,1726732240020,-500.0,0.00012889,2]
[338554045,1726732240034,-500.0,0.00012889,2]
[338554047,1726732240043,-500.0,0.00012889,2]
[338554048,1726732240052,-653.65,0.00012889,2]
[338554050,1726732240061,-500.0,0.00012889,2]
[338554051,1726732240071,-500.0,0.00012889,2]
[338554052,1726732240080,-849.09,0.00012889,2]
[338554053,1726732240089,-500.0,0.00012889,2]
[338554054,1726732240098,-666.58,0.00012889,2]
[338554055,1726732240107,-500.0,0.00012889,2]
[338554056,1726732240116,-500.0,0.00012889,2]
[338554057,1726732240127,-500.0,0.00012889,2]
[338554058,1726732240136,-500.0,0.00012889,2]
[338554059,1726732240145,-544.2,0.00012889,2]
[338554060,1726732240154,-500.0,0.00012889,2]
[338554061,1726732240163,-500.0,0.00012889,2]
[338554062,1726732240172,-500.0,0.00012889,2]
[338554063,1726732240181,-500.0,0.00012889,2]
[338554064,1726732240192,-500.0,0.00012889,2]
[338554065,1726732240201,-500.0,0.00012889,2]
[338554066,1726732240210,-500.0,0.00012889,2]
[338554067,1726732240220,-500.0,0.00012889,2]
[338554068,1726732240229,-500.0,0.00012889,2]
[338554069,1726732240239,-500.0,0.00012889,2]
[338554070,1726732240249,-500.0,0.00012889,2]
[338554071,1726732240258,-500.0,0.00012889,2]
[338554072,1726732240267,-500.0,0.00012889,2]
[338554073,1726732240278,-500.0,0.00012889,2]
[338554074,1726732240287,-500.0,0.00012889,2]
[338554075,1726732240296,-500.0,0.00012889,2]
[338554076,1726732240306,-500.0,0.00012889,2]
[338554077,1726732240315,-500.0,0.00012889,2]
[338554078,1726732240324,-500.0,0.00012889,2]
[338554079,1726732240334,-500.0,0.00012889,2]
[338554080,1726732240344,-500.0,0.00012889,2]
[338554081,1726732240353,-500.0,0.00012889,2]
[338554082,1726732240362,-500.0,0.00012889,2]
[338554083,1726732240371,-500.0,0.00012889,2]
[338554084,1726732240380,-500.0,0.00012889,2]
[338554085,1726732240389,-615.25,0.00012889,2]
[338554086,1726732240399,-1800.0,0.000129,4]
[338554087,1726732240408,-3400.98670077,0.00012935,2]
[338554088,1726732240417,-3897.676,0.00012962,2]
[338554089,1726732240426,-271.742,0.00012993,2]
[338554090,1726732240435,-339.07182377,0.00013005,2]
[338554091,1726732240445,-673.44,0.00013062,2]
[338554092,1726732240454,-500.0,0.00013062,2]
[338554093,1726732240463,-500.0,0.00013062,2]
[338554094,1726732240473,-1243.1,0.00013062,2]
[338554095,1726732240482,-982.28,0.00013062,2]
[338554096,1726732240491,-500.0,0.00013062,2]
[338554097,1726732240501,-500.0,0.00013062,2]
[338554098,1726732240510,-862.5,0.00013062,2]
[338554099,1726732240520,-237.04249961,0.00013062,2]
[338554100,1726732240637,-1402.12,0.00013062,2]
[338554101,1726732240659,-639.22,0.00013062,2]
[338554102,1726732240670,-557.76,0.00013062,2]
[338554103,1726732240679,-500.0,0.00013062,2]
[338554104,1726732240689,-717.81,0.00013062,2]
[338554105,1726732240698,-500.0,0.00013062,2]
[338554106,1726732240708,-500.0,0.00013062,2]
[338554107,1726732240717,-500.0,0.00013062,2]
[338554108,1726732240727,-500.0,0.00013062,2]
[338554109,1726732240737,-500.0,0.00013062,2]
[338554110,1726732240746,-500.0,0.00013062,2]
[338554111,1726732240756,-586.57,0.00013062,2]
[338554112,1726732240765,-756.99,0.00013062,2]
[338554113,1726732240776,-500.0,0.00013062,2]
[338554114,1726732240785,-500.0,0.00013062,2]
[338554115,1726732240795,-500.0,0.00013062,2]
[338554116,1726732240805,-500.0,0.00013062,2]
[338554117,1726732240814,-906.36,0.00013062,2]
[338554118,1726732240826,-1240.18,0.00013062,2]
[338554119,1726732240836,-672.73,0.00013062,2]
[338554120,1726732240846,-500.0,0.00013062,2]
[338554121,1726732240855,-500.0,0.00013062,2]
[338554122,1726732240865,-545.89,0.00013062,2]
[338554123,1726732240875,-500.0,0.00013062,2]
[338554124,1726732240884,-500.0,0.00013062,2]
[338554126,1726732240893,-500.0,0.00013062,2]
[338554128,1726732240903,-500.0,0.00013062,2]
[338554130,1726732240913,-728.38,0.00013062,2]
[338554132,1726732240923,-500.0,0.00013062,2]
[338554134,1726732240932,-500.0,0.00013062,2]
[338554136,1726732240943,-658.72,0.00013062,2]
[338554138,1726732240953,-519.0,0.00013062,2]
[338554140,1726732240963,-778.27,0.00013062,2]
[338554142,1726732240973,-500.0,0.00013062,2]
[338554144,1726732240983,-500.0,0.00013062,2]
[338554146,1726732240992,-500.0,0.00013062,2]
[338554148,1726732241002,-500.0,0.00013062,2]
[338554150,1726732241013,-500.0,0.00013062,2]
[338554152,1726732241024,-1008.59,0.00013062,2]
[338554154,1726732241136,-500.0,0.00013062,2]
[338554156,1726732241146,-718.9,0.00013062,2]
[338554158,1726732241156,-500.0,0.00013062,2]
[338554159,1726732241165,-4085.3,0.00013062,2]
[338554160,1726732241175,-500.0,0.00013062,2]
[338554161,1726732241184,-500.0,0.00013062,2]
[338554162,1726732241194,-584.37,0.00013062,2]
[338554163,1726732241203,-500.0,0.00013062,2]
[338554164,1726732241213,-500.0,0.00013062,2]
[338554165,1726732241222,-500.0,0.00013062,2]
[338554166,1726732241231,-500.0,0.00013062,2]
[338554167,1726732241241,-500.0,0.00013062,2]
[338554168,1726732241251,-500.0,0.00013062,2]
[338554169,1726732241260,-2428.34,0.00013062,2]
[338554170,1726732241269,-500.0,0.00013062,2]
[338554171,1726732241280,-500.0,0.00013062,2]
[338554172,1726732241289,-547.42,0.00013062,2]
[338554173,1726732241300,-500.0,0.00013062,2]
[338554174,1726732241311,-723.1,0.00013062,2]
[338554175,1726732241320,-517.64,0.00013062,2]
[338554176,1726732241330,-694.44,0.00013062,2]
[338554177,1726732241339,-6022.09,0.00013062,2]
[338554178,1726732241348,-784.32,0.00013062,2]
[338554179,1726732241358,-1042.29,0.00013062,2]
[338554180,1726732241368,-500.0,0.00013062,2]
[338554181,1726732241377,-500.0,0.00013062,2]
[338554182,1726732241387,-500.0,0.00013062,2]
[338554183,1726732241396,-842.63,0.00013062,2]
[338554184,1726732241406,-870.34,0.00013062,2]
[338554185,1726732241416,-502.74,0.00013062,2]
[338554186,1726732241426,-500.0,0.00013062,2]
[338554187,1726732241447,-599.18,0.00013062,2]
[338554188,1726732241458,-1280.12,0.00013062,2]
[338554189,1726732241467,-500.0,0.00013062,2]
[338554190,1726732241478,-500.0,0.00013062,2]
[338554191,1726732241488,-1131.1,0.00013062,2]
[338554192,1726732241498,-1402.14,0.00013062,2]
[338554193,1726732241509,-1347.02,0.00013062,2]
[338554194,1726732241519,-500.0,0.00013062,2]
[338554195,1726732241530,-628.39,0.00013062,2]
[338554196,1726732241540,-907.55,0.00013062,2]
[338554197,1726732241551,-500.0,0.00013062,2]
[338554198,1726732241561,-1233.42,0.00013062,2]
[338554199,1726732241571,-500.0,0.00013062,2]
[338554200,1726732241582,-500.0,0.00013062,2]
[338554201,1726732241592,-500.0,0.00013062,2]
[338554202,1726732241603,-619.95,0.00013062,2]
[338554203,1726732241613,-500.0,0.00013062,2]
[338554204,1726732241623,-500.0,0.00013062,2]
[338554205,1726732241634,-1504.17,0.00013062,2]
[338554206,1726732241644,-500.0,0.00013062,2]
[338554207,1726732241654,-500.0,0.00013062,2]
[338554208,1726732241664,-500.0,0.00013062,2]
[338554209,1726732241674,-1372.29,0.00013062,2]
[338554210,1726732241684,-3332.6,0.00013062,2]
[338554211,1726732241694,-1755.32,0.00013062,2]
[338554212,1726732241704,-500.0,0.00013062,2]
[338554213,1726732241715,-500.0,0.00013062,2]
[338554214,1726732241724,-2237.52,0.00013062,2]
[338554215,1726732241734,-500.0,0.00013062,2]
[338554216,1726732241744,-500.0,0.00013062,2]
[338554217,1726732241754,-500.0,0.00013062,2]
[338554218,1726732241765,-1400.09,0.00013062,2]
[338554219,1726732241776,-500.0,0.00013062,2]
[338554220,1726732241786,-500.0,0.00013062,2]
[338554221,1726732241798,-500.0,0.00013062,2]
[338554222,1726732241808,-2058.1,0.00013062,2]
[338554223,1726732241818,-1344.07,0.00013062,2]
[338554224,1726732241831,-568.11,0.00013062,2]
[338554225,1726732241841,-725.32,0.00013062,2]
[338554226,1726732241851,-1266.88,0.00013062,2]
[338554227,1726732241860,-500.0,0.00013062,2]
[338554228,1726732241874,-607.02,0.00013062,2]
[338554229,1726732241885,-773.5,0.00013062,2]
[338554230,1726732241895,-2144.96,0.00013062,2]
[338554231,1726732241907,-500.0,0.00013062,2]
[338554232,1726732241918,-707.1,0.00013062,2]
[338554233,1726732241928,-1791.75,0.00013062,2]
[338554234,1726732241938,-613.4852082,0.00013062,2]
[338554235,1726732241949,-610.73,0.00013062,2]
[338554236,1726732241959,-1226.59,0.00013062,2]
[338554237,1726732241970,-500.0,0.00013062,2]
[338554238,1726732241981,-1499.27,0.00013062,2]
[338554239,1726732241992,-1218.65,0.00013062,2]
[338554240,1726732242002,-1490.06,0.00013062,2]
[338554241,1726732242013,-500.0,0.00013062,2]
[338554242,1726732242024,-981.47,0.00013062,2]
[338554243,1726732242034,-500.0,0.00013062,2]
[338554244,1726732242045,-689.16,0.00013062,2]
[338554245,1726732242055,-500.0,0.00013062,2]
[338554246,1726732242065,-500.0,0.00013062,2]
[338554247,1726732242076,-4015.97,0.00013062,2]
[338554248,1726732242086,-500.0,0.00013062,2]
[338554249,1726732242096,-500.0,0.00013062,2]
[338554250,1726732242107,-500.0,0.00013062,2]
[338554251,1726732242117,-500.0,0.00013062,2]
[338554252,1726732242127,-534.73,0.00013062,2]
[338554253,1726732242137,-1873.31,0.00013062,2]
[338554254,1726732242152,-1649.35,0.00013062,2]
[338554255,1726732242163,-2518.22,0.00013062,2]
[338554256,1726732242174,-951.55,0.00013062,2]
[338554257,1726732242185,-961.38,0.00013062,2]
[338554258,1726732242197,-838.34,0.00013062,2]
[338554259,1726732242209,-500.0,0.00013062,2]
[338554260,1726732242220,-2656.04,0.00013062,2]
[338554261,1726732242231,-1102.89,0.00013062,2]
[338554262,1726732242241,-538.09,0.00013062,2]
[338554263,1726732242251,-614.44,0.00013062,2]
[338554264,1726732242261,-500.0,0.00013062,2]
[338554265,1726732242271,-500.0,0.00013062,2]
[338554266,1726732242282,-1240.77,0.00013062,2]
[338554267,1726732242292,-500.0,0.00013062,2]
[338554268,1726732242305,-500.0,0.00013062,2]
[338554269,1726732242315,-886.35,0.00013062,2]
[338554270,1726732242327,-953.58,0.00013062,2]
[338554271,1726732242338,-661.25,0.00013062,2]
[338554272,1726732242349,-514.5,0.00013062,2]
[338554273,1726732242360,-631.07,0.00013062,2]
[338554274,1726732242371,-500.0,0.00013062,2]
[338554275,1726732242381,-716.29,0.00013062,2]
[338554276,1726732242391,-500.0,0.00013062,2]
[338554277,1726732242401,-500.0,0.00013062,2]
[338554278,1726732242411,-500.0,0.00013062,2]
[338554279,1726732242422,-1113.9,0.00013062,2]
[338554280,1726732242437,-500.0,0.00013062,2]
[338554281,1726732242448,-1295.39,0.00013062,2]
[338554282,1726732242459,-500.0,0.00013062,2]
[338554283,1726732242469,-500.0,0.00013062,2]
[338554284,1726732242479,-500.0,0.00013062,2]
[338554285,1726732242490,-686.32,0.00013062,2]
[338554286,1726732242500,-500.0,0.00013062,2]
[338554287,1726732242511,-1117.17,0.00013062,2]
[338554288,1726732242522,-500.0,0.00013062,2]
[338554289,1726732242534,-1504.63,0.00013062,2]
[338554290,1726732242544,-1973.3,0.00013062,2]
[338554291,1726732242554,-500.0,0.00013062,2]
[338554292,1726732242564,-500.0,0.00013062,2]
[338554293,1726732242575,-500.0,0.00013162,2]
[338554294,1726732242585,-500.0,0.00013162,2]
[338554295,1726732242595,-500.0,0.00013162,2]
[338554296,1726732242606,-500.0,0.00013162,2]
[338554297,1726732242616,-307.95101121,0.00013162,2]
[338554298,1726732242627,-500.0,0.00013162,2]
[338554299,1726732242636,-500.0,0.00013163,2]
[338554300,1726732242647,-500.0,0.00013163,2]
[338554301,1726732242657,-500.0,0.00013163,2]
[338554302,1726732242667,-500.0,0.00013163,2]
[338554303,1726732242677,-500.0,0.00013163,2]
[338554304,1726732242687,-197.54429273,0.00013163,2]
[338554305,1726732242699,-500.0,0.00013163,2]
[338554306,1726732242709,-500.0,0.00013163,2]
[338554307,1726732242719,-500.0,0.00013163,2]
[338554308,1726732242730,-511.73,0.00013163,2]
[338554309,1726732242740,-556.86,0.00013163,2]
[338554310,1726732242750,-500.0,0.00013163,2]
[338554311,1726732242760,-500.0,0.00013163,2]
[338554312,1726732242770,-500.0,0.00013163,2]
[338554313,1726732242782,-500.0,0.00013163,2]
[338554314,1726732242791,-733.16,0.00013163,2]
[338554315,1726732242801,-500.0,0.00013163,2]
[338554316,1726732242811,-500.0,0.00013163,2]
[338554318,1726732242822,-500.0,0.00013163,2]
[338554320,1726732242834,-500.0,0.00013163,2]
[338554321,1726732242844,-513.56,0.00013163,2]
[338554322,1726732242854,-500.0,0.00013163,2]
[338554323,1726732242864,-500.0,0.00013163,2]
[338554324,1726732242875,-500.0,0.00013163,2]
[338554325,1726732242886,-500.0,0.00013163,2]
[338554326,1726732242896,-249.04832669,0.00013163,2]
[338554327,1726732242907,-500.0,0.00013163,2]
[338554328,1726732242918,-500.0,0.00013163,2]
[338554329,1726732242928,-500.0,0.00013163,2]
[338554330,1726732242938,-500.0,0.00013163,2]
[338554331,1726732242947,-500.0,0.00013163,2]
[338554332,1726732242959,-500.0,0.00013163,2]
[338554333,1726732242970,-500.0,0.00013163,2]
[338554334,1726732242981,-500.0,0.00013163,2]
[338554335,1726732242991,-500.0,0.00013163,2]
[338554336,1726732243002,-500.0,0.00013163,2]
[338554337,1726732243012,-591.17,0.00013163,2]
[338554338,1726732243023,-500.0,0.00013163,2]
[338554339,1726732243033,-500.0,0.00013163,2]
[338554340,1726732243044,-500.0,0.00013163,2]
[338554341,1726732243054,-500.0,0.00013163,2]
[338554342,1726732243064,-500.0,0.00013163,2]
[338554343,1726732243074,-500.0,0.00013163,2]
[338554344,1726732243084,-500.0,0.00013163,2]
[338554345,1726732243096,-696.61,0.00013163,2]
[338554346,1726732243107,-500.0,0.00013163,2]
[338554347,1726732243116,-500.0,0.00013163,2]
[338554348,1726732243127,-539.18,0.00013163,2]
[338554349,1726732243138,-500.0,0.00013163,2]
[338554350,1726732243149,-500.0,0.00013163,2]
[338554351,1726732243159,-500.0,0.00013163,2]
[338554352,1726732243168,-717.13,0.00013163,2]
[338554353,1726732243178,-701.24,0.00013163,2]
[338554354,1726732243188,-500.0,0.00013163,2]
[338554355,1726732243198,-500.0,0.00013163,2]
[338554356,1726732243208,-544.0,0.00013163,2]
[338554357,1726732243218,-941.85,0.00013163,2]
[338554358,1726732243229,-500.0,0.00013163,2]
[338554359,1726732243239,-500.0,0.00013163,2]
[338554360,1726732243257,-500.0,0.00013163,2]
[338554361,1726732243267,-500.0,0.00013163,2]